fUSD/lending_fUSD_20260115
["ID","MTS","AMOUNT","RATE_DAILY","PERIOD"]
[402004806,1768456275631,-500.0,0.00041369,30]
[402004807,1768456275641,-151.0,0.00041369,120]
[402004808,1768456275651,-500.0,0.00041369,30]
[402004809,1768456275660,-151.0,0.00041369,120]
[402004810,1768456275670,-218.48537024,0.00041369,120]
[402004811,1768456275681,-500.0,0.00041369,30]
[402004812,1768456275690,-526.47,0.00041369,30]
[402004813,1768456275700,-1487.05,0.00041369,30]
[402004814,1768456275710,-500.0,0.00041369,30]
[402004815,1768456275720,-500.0,0.00041369,30]
[402004816,1768456275730,-500.0,0.00041369,30]
[402004817,1768456275740,-500.0,0.00041369,30]
[402004818,1768456275750,-500.0,0.00041369,30]
[402004819,1768456275760,-2377.12,0.00041369,30]
[402004820,1768456275770,-500.0,0.00041369,30]
[402004821,1768456275780,-775.2,0.00041369,30]
[402004822,1768456275790,-500.0,0.00041369,30]
[402004823,1768456275801,-500.0,0.00041369,30]
[402004824,1768456275810,-510.84,0.00041369,30]
[402004825,1768456275820,-1459.33,0.00041369,30]
[402004826,1768456275829,-461.97234584,0.00041369,30]
[402004827,1768456275839,-914.3,0.00041369,30]
[402004828,1768456275849,-545.61606309,0.00041369,30]
[402004829,1768456275859,-500.0,0.00041369,30]
[402004830,1768456275870,-1202.18,0.00041369,30]
[402004831,1768456275880,-508.94127772,0.00041369,30]
[402004832,1768456275890,-500.0,0.00041369,30]
[402004833,1768456275900,-500.0,0.00041369,30]
[402004834,1768456275910,-1209.34,0.00041369,30]
[402004835,1768456275920,-500.0,0.00041369,30]
[402004836,1768456275930,-500.0,0.00041369,30]
[402004837,1768456275939,-1506.75,0.00041369,30]
[402004838,1768456275949,-500.0,0.00041369,30]
[402004839,1768456275959,-515.50135041,0.00041369,30]
[402004840,1768456275969,-500.0,0.00041369,30]
[402004841,1768456275978,-500.0,0.00041369,30]
[402004842,1768456275989,-664.83,0.00041369,30]
[402004843,1768456275997,-500.0,0.00041369,30]
[402004844,1768456276007,-500.0,0.00041369,30]
[402004845,1768456276017,-680.73,0.00041369,30]
[402004846,1768456276027,-500.0,0.00041369,30]
[402004847,1768456276036,-596.93,0.00041369,30]
[402004848,1768456276046,-500.0,0.00041369,30]
[402004849,1768456276056,-832.77,0.00041369,30]
[402004850,1768456276065,-1390.2,0.00041369,30]
[402004851,1768456276075,-500.0,0.00041369,30]
[402004852,1768456276085,-2147.72,0.00041369,30]
[402004853,1768456276095,-610.89,0.00041369,30]
[402004854,1768456276415,-500.0,0.00041369,30]
[402004855,1768456276430,-500.0,0.00041369,30]
[402004856,1768456276440,-500.0,0.00041369,30]
[402004857,1768456276451,-500.0,0.00041369,30]
[402004858,1768456276460,-502.85497847,0.00041369,30]
[402004859,1768456276470,-500.0,0.00041369,30]
[402004860,1768456276480,-540.48,0.00041369,30]
[402004861,1768456276490,-500.0,0.00041369,30]
[402004862,1768456276499,-500.0,0.00041369,30]
[402004863,1768456276510,-1604.52,0.00041369,30]
[402004864,1768456276520,-500.0,0.00041369,30]
[402004865,1768456276529,-500.0,0.00041369,30]
[402004866,1768456276539,-500.0,0.00041369,5]
[402004867,1768456276548,-631.05,0.00041369,30]
[402004868,1768456276558,-500.0,0.00041369,30]
[402004869,1768456276567,-554.01820784,0.00041369,30]
[402004870,1768456276577,-500.0,0.00041369,30]
[402004871,1768456276587,-500.0,0.00041369,30]
[402004872,1768456276596,-500.0,0.00041369,30]
[402004873,1768456276606,-500.0,0.00041369,30]
[402004874,1768456276616,-508.78408569,0.00041369,30]
[402004875,1768456276625,-518.01220527,0.00041369,30]
[402004876,1768456276634,-563.92,0.00041369,30]
[402004877,1768456276643,-662.82,0.00041369,30]
[402004878,1768456276652,-1751.71,0.00041369,30]
[402004879,1768456276662,-508.16716535,0.00041369,30]
[402004880,1768456276671,-693.5,0.00041369,30]
[402004881,1768456276681,-1774.48,0.00041369,30]
[402004882,1768456276690,-500.0,0.00041369,30]
[402004883,1768456276699,-532.94529009,0.00041369,30]
[402004884,1768456276708,-500.0,0.00041369,30]
[402004885,1768456276717,-500.0,0.00041369,30]
[402004886,1768456276726,-500.0,0.00041369,30]
[402004887,1768456276735,-500.0,0.00041369,30]
[402004888,1768456276744,-668.97,0.00041369,30]
[402004889,1768456276754,-500.0,0.00041369,30]
[402004890,1768456276763,-586.79,0.00041369,30]
[402004891,1768456276772,-500.0,0.00041369,30]
[402004892,1768456276782,-500.0,0.00041369,30]
[402004893,1768456276791,-1425.42,0.00041369,30]
[402004894,1768456276800,-500.0,0.00041369,30]
[402004895,1768456276809,-500.0,0.00041369,30]
[402004896,1768456276818,-768.68,0.00041369,30]
[402004897,1768456276827,-500.0,0.00041369,30]
[402004898,1768456276836,-500.0,0.00041369,30]
[402004899,1768456276845,-500.0,0.00041369,30]
[402004900,1768456276855,-360.70308171,0.00041369,30]
[402004901,1768456276865,-500.0,0.00041369,30]
[402004902,1768456276875,-2253.59,0.00041369,30]
[402004903,1768456276884,-500.0,0.00041369,30]
[402004904,1768456276893,-1332.22,0.00041369,30]
[402004905,1768456276902,-2288.89,0.00041369,30]
[402004906,1768456276912,-605.16,0.00041369,30]
[402004907,1768456276922,-795.95,0.00041369,30]
[402004908,1768456276931,-500.0,0.00041369,30]
[402004909,1768456276940,-1059.96,0.00041369,30]
[402004910,1768456276949,-237.45970603,0.00041369,30]
[402004911,1768456276963,-793.98,0.00041369,30]
[402004912,1768456276972,-2002.1,0.00041369,30]
[402004913,1768456276982,-2162.23,0.00041369,30]
[402004914,1768456276992,-500.0,0.00041369,30]
[402004915,1768456277003,-504.91,0.00041369,30]
[402004916,1768456277013,-500.0,0.00041369,30]
[402004917,1768456277023,-500.0,0.00041369,30]
[402004918,1768456277032,-768.39,0.00041369,30]
[402004919,1768456277042,-440.83837452,0.00041369,30]
[402004920,1768456277052,-697.86,0.00041369,30]
[402004921,1768456277061,-563.45,0.00041369,30]
[402004922,1768456277070,-500.0,0.00041369,30]
[402004923,1768456277080,-1132.27,0.00041369,30]
[402004924,1768456277090,-500.0,0.00041369,30]
[402004925,1768456277099,-1030.03,0.00041369,30]
[402004926,1768456277109,-2945.98,0.00041369,30]
[402004927,1768456277118,-500.0,0.00041369,30]
[402004928,1768456277129,-500.0,0.00041369,30]
[402004929,1768456277139,-586.52,0.00041369,30]
[402004930,1768456277149,-1757.27,0.00041369,30]
[402004931,1768456277160,-500.0,0.00041369,30]
[402004932,1768456277170,-1779.76,0.00041369,30]
[402004933,1768456277179,-500.0,0.00041369,30]
[402004934,1768456277189,-500.0,0.00041369,30]
[402004935,1768456277199,-516.79,0.00041369,30]
[402004936,1768456277208,-571.51,0.00041369,30]
[402004937,1768456277218,-500.0,0.00041369,30]
[402004938,1768456277229,-500.0,0.00041369,30]
[402004939,1768456277240,-500.0,0.00041369,30]
[402004940,1768456277250,-500.0,0.00041369,30]
[402004941,1768456277260,-417.81393874,0.00041369,30]
[402004942,1768456277269,-500.0,0.00041369,30]
[402004943,1768456277279,-1194.56,0.00041369,30]
[402004944,1768456277289,-1341.32,0.00041369,30]
[402004945,1768456277299,-1513.91,0.00041369,30]
[402004946,1768456277309,-500.0,0.00041369,30]
[402004947,1768456277319,-592.79,0.00041369,30]
[402004948,1768456277328,-500.0,0.00041369,30]
[402004949,1768456277337,-1086.44,0.00041369,30]
[402004950,1768456277346,-500.0,0.00041369,30]
[402004951,1768456277356,-500.0,0.00041369,30]
[402004952,1768456277366,-500.0,0.00041369,30]
[402004953,1768456277375,-500.0,0.00041369,30]
[402004954,1768456277384,-1972.8,0.00041369,30]
[402004955,1768456277394,-500.0,0.00041369,30]
[402004956,1768456277404,-500.0,0.00041369,30]
[402004957,1768456277413,-2409.54,0.00041369,30]
[402004958,1768456277423,-500.0,0.00041369,30]
[402004959,1768456277433,-500.0,0.00041369,30]
[402004960,1768456277442,-500.0,0.00041369,30]
[402004961,1768456277453,-1211.6,0.00041369,30]
[402004962,1768456277463,-500.0,0.00041369,30]
[402004963,1768456277472,-500.0,0.00041369,30]
[402004964,1768456277481,-545.73,0.00041369,30]
[402004965,1768456277491,-958.37,0.00041369,30]
[402004966,1768456277501,-500.0,0.00041369,30]
[402004967,1768456277510,-786.37,0.00041369,30]
[402004968,1768456277520,-500.0,0.00041369,30]
[402004969,1768456277529,-542.37,0.00041369,30]
[402004970,1768456277539,-664.96,0.00041369,30]
[402004971,1768456277548,-523.07,0.00041369,30]
[402004972,1768456277558,-500.0,0.00041369,30]
[402004973,1768456277568,-1372.95,0.00041369,30]
[402004974,1768456277577,-500.0,0.00041369,30]
[402004975,1768456277587,-812.51,0.00041369,30]
[402004976,1768456277597,-1455.87,0.00041369,30]
[402004977,1768456277607,-941.8,0.00041369,30]
[402004978,1768456277617,-500.0,0.00041369,30]
[402004979,1768456277627,-2662.37,0.00041369,30]
[402004980,1768456277636,-500.0,0.00041369,30]
[402004981,1768456277646,-973.33,0.00041369,30]
[402004982,1768456277656,-500.0,0.00041369,30]
[402004983,1768456277665,-1289.05,0.00041369,30]
[402004984,1768456277675,-500.0,0.00041369,30]
[402004985,1768456277685,-685.1,0.00041369,30]
[402004986,1768456277694,-699.2,0.00041369,30]
[402004987,1768456277708,-1487.63,0.00041369,30]
[402004988,1768456277718,-500.0,0.00041369,30]
[402004989,1768456277729,-500.0,0.00041369,30]
[402004990,1768456277738,-500.0,0.00041369,30]
[402004991,1768456277748,-722.63,0.00041369,30]
[402004992,1768456277758,-718.84,0.00041369,30]
[402004993,1768456277768,-500.0,0.00041369,30]
[402004994,1768456277777,-1374.44,0.00041369,30]
[402004995,1768456277787,-1333.33,0.00041369,30]
[402004996,1768456277797,-500.0,0.00041369,30]
[402004997,1768456277806,-500.0,0.00041369,30]
[402004998,1768456277816,-500.0,0.00041369,30]
[402004999,1768456277825,-880.97,0.00041369,30]
[402005000,1768456277835,-514.21440698,0.00041369,30]
[402005001,1768456277844,-500.0,0.00041369,30]
[402005002,1768456277854,-1474.36,0.00041369,30]
[402005003,1768456277865,-534.59422212,0.00041369,30]
[402005004,1768456277875,-1370.45,0.00041369,30]
[402005005,1768456277884,-500.0,0.00041369,30]
[402005006,1768456277894,-500.0,0.00041369,30]
[402005007,1768456277904,-525.08,0.00041369,30]
[402005008,1768456277913,-500.0,0.00041369,30]
[402005009,1768456277923,-532.31,0.00041369,30]
[402005010,1768456277932,-1652.78,0.00041369,30]
[402005011,1768456277941,-500.0,0.00041369,30]
[402005012,1768456277951,-550.85932453,0.00041369,30]
[402005013,1768456277960,-500.0,0.00041369,30]
[402005014,1768456277969,-501.88654205,0.00041369,30]
[402005015,1768456277979,-500.0,0.00041369,30]
[402005016,1768456277988,-500.0,0.00041369,30]
[402005017,1768456277998,-627.92909038,0.00041369,30]
[402005018,1768456278007,-500.0,0.00041369,30]
[402005019,1768456278016,-500.0,0.00041369,30]
[402005020,1768456278026,-342.67027023,0.00041369,30]
[402005021,1768456278036,-764.83,0.00041369,30]
[402005022,1768456278047,-938.14,0.00041369,30]
[402005023,1768456278056,-1414.71,0.00041369,30]
[402005024,1768456278065,-2387.71,0.00041369,30]
[402005025,1768456278079,-500.0,0.00041369,30]
[402005026,1768456278089,-546.58,0.00041369,30]
[402005027,1768456278099,-506.49047147,0.00041369,30]
[402005028,1768456278108,-500.0,0.00041369,30]
[402005029,1768456278118,-500.0,0.00041369,30]
[402005030,1768456278128,-500.0,0.00041369,30]
[402005031,1768456278138,-725.6,0.00041369,30]
[402005032,1768456278147,-500.0,0.00041369,30]
[402005033,1768456278162,-500.0,0.00041369,30]
[402005034,1768456278172,-500.0,0.00041369,30]
[402005035,1768456278181,-500.0,0.00041369,30]
[402005036,1768456278191,-368.90821089,0.00041369,30]
[402005037,1768456278202,-500.0,0.00041369,30]
[402005038,1768456278212,-500.0,0.00041369,30]
[402005039,1768456278222,-507.5,0.00041369,30]
[402005040,1768456278234,-500.0,0.00041369,30]
[402005041,1768456278244,-500.0,0.00041369,30]
[402005042,1768456278254,-852.0,0.00041369,30]
[402005043,1768456278264,-785.39,0.00041369,30]
[402005044,1768456278274,-635.80208829,0.00041369,30]
[402005045,1768456278283,-500.0,0.00041369,30]
[402005046,1768456278293,-808.51,0.00041369,30]
[402005047,1768456278302,-500.0,0.00041369,30]
[402005048,1768456278312,-500.0,0.00041369,30]
[402005049,1768456278322,-1558.42,0.00041369,30]
[402005050,1768456278332,-500.0,0.00041369,30]
[402005051,1768456278342,-939.62,0.00041369,30]
[402005052,1768456278352,-500.0,0.00041369,30]
[402005053,1768456278361,-1133.45,0.00041369,30]
[402005054,1768456278372,-951.35,0.00041369,30]
[402005055,1768456278382,-1235.87,0.00041369,30]
[402005056,1768456278392,-500.0,0.00041369,30]
[402005057,1768456278401,-500.0,0.00041369,30]
[402005058,1768456278411,-500.0,0.00041369,30]
[402005059,1768456278421,-500.0,0.00041369,30]
[402005060,1768456278431,-500.0,0.00041369,30]
[402005061,1768456278440,-1344.98,0.00041369,30]
[402005062,1768456278454,-524.70936829,0.00041369,30]
[402005063,1768456278463,-507.71,0.00041369,30]
[402005064,1768456278473,-500.0,0.00041369,30]
[402005065,1768456278483,-500.0,0.00041369,30]
[402005066,1768456278493,-1917.34,0.00041369,30]
[402005067,1768456278503,-929.04,0.00041369,30]
[402005068,1768456278513,-567.59,0.00041369,30]
[402005069,1768456278522,-500.0,0.00041369,30]
[402005070,1768456278532,-500.0,0.00041369,30]
[402005071,1768456278541,-1078.65,0.00041369,30]
[402005072,1768456278551,-939.8,0.00041369,30]
[402005073,1768456278560,-2051.49,0.00041369,30]
[402005074,1768456278570,-164.47701855,0.00041369,30]
[402005075,1768456278579,-500.0,0.00041369,30]
[402005076,1768456278589,-660.83,0.00041369,30]
[402005077,1768456278598,-2161.17,0.00041369,30]
[402005078,1768456278608,-500.0,0.00041369,30]
[402005079,1768456278619,-1316.39,0.00041369,30]
[402005080,1768456278628,-500.0,0.00041369,30]
[402005081,1768456278638,-2201.93,0.00041369,30]
[402005082,1768456278650,-500.0,0.00041369,30]
[402005083,1768456278660,-584.07,0.00041369,30]
[402005084,1768456278669,-531.28,0.00041369,30]
[402005085,1768456278679,-725.19,0.00041369,30]
[402005086,1768456278688,-313.42102109,0.00041369,30]
[402005087,1768456278698,-1119.17,0.00041369,30]
[402005088,1768456278707,-500.0,0.00041369,30]
[402005089,1768456278717,-778.77,0.00041369,30]
[402005090,1768456278727,-500.0,0.00041369,30]
[402005091,1768456278736,-500.0,0.00041369,30]
[402005092,1768456278745,-1259.48,0.00041369,30]
[402005093,1768456278762,-2067.31,0.00041369,30]
[402005094,1768456278772,-1407.11,0.00041369,30]
[402005095,1768456278781,-1797.11,0.00041369,30]
[402005096,1768456278791,-500.0,0.00041369,30]
[402005097,1768456278800,-162.12547692,0.00041369,30]
[402005098,1768456278810,-500.0,0.00041369,30]
[402005099,1768456278819,-500.0,0.00041369,30]
[402005100,1768456278829,-500.0,0.00041369,30]
[402005101,1768456278841,-500.0,0.00041369,30]
[402005102,1768456278850,-1676.02,0.00041369,30]
[402005103,1768456278861,-500.0,0.00041369,30]
[402005104,1768456278878,-2411.51,0.00041369,30]
[402005105,1768456278892,-500.0,0.00041369,30]
[402005106,1768456278904,-500.0,0.00041369,30]
[402005107,1768456278918,-500.0,0.00041369,30]
[402005108,1768456278932,-677.02,0.00041369,30]
[402005109,1768456278947,-500.0,0.00041369,30]
[402005110,1768456278962,-1265.91,0.00041369,30]
[402005111,1768456278976,-810.25,0.00041369,30]
[402005112,1768456278989,-500.0,0.00041369,30]
[402005113,1768456279000,-151.0,0.00041369,120]
[402005114,1768456279015,-500.0,0.00041369,30]
[402005115,1768456279029,-500.0,0.00041369,30]
[402005116,1768456279044,-151.0,0.00041369,120]
[402005117,1768456279059,-151.0,0.00041369,120]
[402005118,1768456279074,-386.28772139,0.00041369,30]
[402005119,1768456279088,-151.0,0.00041369,120]
[402005120,1768456279103,-151.0,0.00041369,120]
[402005121,1768456279119,-1957.85,0.00041369,30]
[402005122,1768456279134,-500.0,0.00041369,30]
[402005123,1768456279147,-525.59,0.00041369,30]
[402005124,1768456279163,-1210.89,0.00041369,30]
[402005125,1768456279182,-500.0,0.00041369,30]
[402005126,1768456279207,-506.93,0.00041369,30]
[402005127,1768456279228,-461.45109997,0.00041369,30]
[402005128,1768456279241,-2083.77,0.00041369,30]
[402005129,1768456279256,-925.59,0.00041369,30]
[402005130,1768456279272,-500.0,0.00041369,30]
[402005131,1768456279288,-151.0,0.00041369,120]
[402005132,1768456279300,-612.19,0.00041369,30]
[402005133,1768456279312,-500.0,0.00041369,30]
[402005134,1768456279326,-500.0,0.00041369,30]
[402005135,1768456279347,-1081.46,0.00041369,30]
[402005136,1768456279358,-500.0,0.00041369,30]
[402005137,1768456279371,-500.0,0.00041369,30]
[402005138,1768456279391,-472.12934709,0.00041369,30]
[402005139,1768456279405,-500.0,0.00041369,30]
[402005140,1768456279419,-570.86,0.00041369,30]
[402005141,1768456279435,-500.0,0.00041369,30]
[402005142,1768456279454,-500.0,0.00041369,30]
[402005143,1768456279472,-580.23,0.00041369,30]
[402005144,1768456279489,-500.0,0.00041369,30]
[402005145,1768456279505,-500.0,0.00041369,30]
[402005146,1768456279521,-500.0,0.00041369,30]
[402005147,1768456279537,-382.75212541,0.00041369,30]
[402005148,1768456279553,-1307.38,0.00041369,30]
[402005149,1768456279568,-500.0,0.00041369,30]
[402005150,1768456279584,-500.0,0.00041369,30]
[402005151,1768456279601,-1903.76,0.00041369,30]
[402005152,1768456279616,-1509.71,0.00041369,30]
[402005153,1768456279631,-500.0,0.00041369,30]
[402005154,1768456279646,-500.0,0.00041369,30]
[402005155,1768456279661,-629.86357507,0.00041369,30]
[402005156,1768456279677,-693.74,0.00041369,30]
[402005157,1768456279696,-1515.33,0.00041369,30]
[402005158,1768456279711,-500.0,0.00041369,30]
[402005159,1768456279734,-500.0,0.00041369,30]
[402005160,1768456279751,-517.89,0.00041369,30]
[402005161,1768456279768,-500.0,0.00041369,30]
[402005162,1768456279784,-687.53,0.00041369,30]
[402005163,1768456279800,-1281.85,0.00041369,30]
[402005164,1768456279814,-500.0,0.00041369,30]
[402005165,1768456279829,-1330.12,0.00041369,30]
[402005166,1768456279843,-500.0,0.00041369,30]
[402005167,1768456279858,-1408.68,0.00041369,30]
[402005168,1768456279871,-500.0,0.00041369,30]
[402005169,1768456279886,-2150.32,0.00041369,30]
[402005170,1768456279900,-577.39,0.00041369,30]
[402005171,1768456279914,-500.0,0.00041369,30]
[402005172,1768456279927,-668.11,0.00041369,30]
[402005173,1768456279942,-500.0,0.00041369,30]
[402005174,1768456279956,-1381.77,0.00041369,30]
[402005175,1768456279970,-941.25,0.00041369,30]
[402005176,1768456279983,-500.0,0.00041369,30]
[402005177,1768456279997,-500.0,0.00041369,30]
[402005178,1768456280010,-618.87,0.00041369,30]
[402005179,1768456280024,-500.0,0.00041369,30]
[402005180,1768456280038,-500.0,0.00041369,30]
[402005181,1768456280056,-761.13,0.00041369,30]
[402005182,1768456280070,-500.0,0.00041369,30]
[402005183,1768456280085,-500.0,0.00041369,30]
[402005184,1768456280100,-1981.46,0.00041369,30]
[402005185,1768456280114,-500.0,0.00041369,30]
[402005186,1768456280128,-1553.39,0.00041369,30]
[402005187,1768456280141,-151.0,0.00041369,120]
[402005188,1768456280154,-500.0,0.00041369,30]
[402005189,1768456280168,-500.0,0.00041369,30]
[402005190,1768456280180,-500.0,0.00041369,30]
[402005191,1768456280193,-3119.56,0.00041369,30]
[402005192,1768456280205,-500.0,0.00041369,30]
[402005193,1768456280218,-515.40366159,0.00041369,30]
[402005194,1768456280231,-500.0,0.00041369,30]
[402005195,1768456280244,-500.0,0.00041369,30]
[402005196,1768456280256,-587.24,0.00041369,30]
[402005197,1768456280269,-506.95630451,0.00041369,30]
[402005198,1768456280280,-500.0,0.00041369,30]
[402005199,1768456280293,-500.0,0.00041369,30]
[402005200,1768456280306,-1640.35,0.00041369,30]
[402005201,1768456280318,-500.0,0.00041369,30]
[402005202,1768456280330,-635.35,0.00041369,30]
[402005203,1768456280342,-500.0,0.00041369,30]
[402005204,1768456280355,-947.6,0.00041369,30]
[402005205,1768456280367,-834.05,0.00041369,30]
[402005206,1768456280379,-500.0,0.00041369,30]
[402005207,1768456280391,-1160.51,0.00041369,30]
[402005208,1768456280402,-500.0,0.00041369,30]
[402005209,1768456280414,-500.0,0.00041369,30]
[402005210,1768456280426,-889.08,0.00041369,30]
[402005211,1768456280437,-500.0,0.00041369,30]
[402005212,1768456280449,-500.0,0.00041369,30]
[402005213,1768456280462,-866.78,0.00041369,30]
[402005214,1768456280473,-13197.73041501,0.00041369,30]
[402005215,1768456280485,-500.0,0.00041369,30]
[402005216,1768456280496,-500.0,0.00041369,30]
[402005217,1768456280508,-592.22,0.00041369,30]
[402005218,1768456280520,-1417.17,0.00041369,30]
[402005219,1768456280532,-500.0,0.00041369,30]
[402005220,1768456280543,-500.0,0.00041369,30]
[402005221,1768456280555,-973.23,0.00041369,30]
[402005222,1768456280566,-898.7,0.00041369,30]
[402005223,1768456280578,-500.0,0.00041369,30]
[402005224,1768456280589,-1786.57,0.00041369,30]
[402005225,1768456280601,-996.95,0.00041369,30]
[402005226,1768456280612,-500.0,0.00041369,30]
[402005227,1768456280624,-1938.87,0.00041369,30]
[402005228,1768456280636,-500.0,0.00041369,30]
[402005229,1768456280648,-511.98463409,0.00041369,30]
[402005230,1768456280660,-500.0,0.00041369,30]
[402005231,1768456280672,-500.0,0.00041369,30]
[402005232,1768456280683,-500.0,0.00041369,30]
[402005233,1768456280695,-500.0,0.00041369,30]
[402005234,1768456280706,-500.0,0.00041369,30]
[402005235,1768456280718,-983.72,0.00041369,30]
[402005236,1768456280729,-500.0,0.00041369,30]
[402005237,1768456280740,-554.08050934,0.00041369,30]
[402005238,1768456280751,-1322.04,0.00041369,30]
[402005239,1768456280762,-500.0,0.00041369,30]
[402005240,1768456280773,-981.72,0.00041369,30]
[402005241,1768456280784,-1114.48,0.00041369,30]
[402005242,1768456280796,-500.0,0.00041369,30]
[402005243,1768456280807,-500.0,0.00041369,30]
[402005244,1768456280818,-500.0,0.00041369,30]
[402005245,1768456280829,-1290.94,0.00041369,30]
[402005246,1768456280840,-923.78,0.00041369,30]
[402005247,1768456280852,-902.39,0.00041369,30]
[402005248,1768456280863,-1298.08,0.00041369,30]
[402005249,1768456280882,-765.65,0.00041369,30]
[402005250,1768456280893,-500.0,0.00041369,30]
[402005251,1768456280904,-550.96,0.00041369,30]
[402005252,1768456280916,-1712.6,0.00041369,30]
[402005253,1768456280927,-1663.22,0.00041369,30]
[402005254,1768456280938,-500.0,0.00041369,30]
[402005255,1768456280950,-500.0,0.00041369,30]
[402005256,1768456280961,-567.83,0.00041369,30]
[402005257,1768456280972,-500.0,0.00041369,30]
[402005258,1768456280984,-728.49,0.00041369,30]
[402005259,1768456280995,-836.88,0.00041369,30]
[402005260,1768456281007,-1472.36,0.00041369,30]
[402005261,1768456281018,-500.0,0.00041369,30]
[402005262,1768456281030,-500.0,0.00041369,30]
[402005263,1768456281041,-500.0,0.00041369,30]
[402005264,1768456281052,-1752.48,0.00041369,30]
[402005265,1768456281063,-500.0,0.00041369,30]
[402005266,1768456281075,-1282.29,0.00041369,30]
[402005267,1768456281086,-500.0,0.00041369,30]
[402005268,1768456281098,-500.0,0.00041369,30]
[402005269,1768456281110,-500.0,0.00041369,30]
[402005270,1768456281121,-515.93,0.00041369,30]
[402005271,1768456281133,-1625.58,0.00041369,30]
[402005272,1768456281144,-500.0,0.00041369,30]
[402005273,1768456281156,-500.0,0.00041369,30]
[402005274,1768456281171,-1031.64,0.00041369,30]
[402005275,1768456281182,-1546.57,0.00041369,30]
[402005276,1768456281193,-500.0,0.00041369,30]
[402005277,1768456281205,-500.0,0.00041369,30]
[402005278,1768456281216,-898.37,0.00041369,30]
[402005279,1768456281228,-731.92,0.00041369,30]
[402005280,1768456281239,-611.18,0.00041369,30]
[402005281,1768456281250,-500.0,0.00041369,30]
[402005282,1768456281261,-500.0,0.00041369,30]
[402005283,1768456281272,-500.0,0.00041369,30]
[402005284,1768456281282,-500.0,0.00041369,30]
[402005285,1768456281293,-543.14759595,0.00041369,30]
[402005286,1768456281304,-830.99,0.00041369,30]
[402005287,1768456281315,-500.0,0.00041369,30]
[402005288,1768456281326,-500.0,0.00041369,30]
[402005289,1768456281338,-1327.4,0.00041369,30]
[402005290,1768456281349,-1352.98,0.00041369,30]
[402005291,1768456281361,-500.0,0.00041369,30]
[402005292,1768456281371,-1623.62,0.00041369,30]
[402005293,1768456281382,-500.0,0.00041369,30]
[402005294,1768456281393,-500.0,0.00041369,30]
[402005295,1768456281404,-500.0,0.00041369,30]
[402005296,1768456281415,-1474.95,0.00041369,30]
[402005297,1768456281426,-1126.83,0.00041369,30]
[402005298,1768456281438,-838.95,0.00041369,30]
[402005299,1768456281449,-625.63,0.00041369,30]
[402005300,1768456281461,-500.0,0.00041369,30]
[402005301,1768456281472,-3417.33,0.00041369,30]
[402005302,1768456281483,-500.0,0.00041369,30]
[402005303,1768456281494,-737.76,0.00041369,30]
[402005304,1768456281506,-500.0,0.00041369,30]
[402005305,1768456281517,-500.0,0.00041369,30]